bitfinex-derivatives/quotes_BTCF0:USTF0_20250121
["timestamp","ask_amount","ask_price","bid_price","bid_amount"]
[1737495189372,0.0718,106490.0,106480.0,2.3656111]
[1737495189562,0.0718,106490.0,106480.0,2.27170116]
[1737495196176,0.0718,106490.0,106480.0,0.77170116]
[1737495196364,0.1,106500.0,106490.0,0.1878]
[1737495196564,0.1395717,106520.0,106510.0,0.187765]
[1737495196873,0.10252381,106520.0,106510.0,1.27659188]
[1737495197168,0.10252381,106520.0,106510.0,1.437493]
[1737495197169,0.06752038,106520.0,106510.0,1.437493]
[1737495197963,0.35472596,106530.0,106510.0,1.437493]
[1737495198173,0.18773,106530.0,106520.0,0.3608]
[1737495199163,0.187747,106520.0,106510.0,0.01419923]
[1737495199360,0.548547,106520.0,106510.0,0.01419923]
[1737495200159,0.548547,106520.0,106510.0,0.09880574]
[1737495200363,0.548547,106520.0,106510.0,0.01419923]
[1737495200575,0.548547,106520.0,106510.0,0.01519923]
[1737495200968,0.187765,106510.0,106500.0,0.00014129]
[1737495201171,0.750365,106510.0,106500.0,0.00014129]
[1737495201566,0.83497151,106510.0,106500.0,0.00014129]
[1737495201973,0.187783,106500.0,106490.0,1.51380188]
[1737495202175,0.187818,106480.0,106470.0,0.45750601]
[1737495202470,0.187818,106480.0,106470.0,0.44540651]
[1737495202663,0.256218,106480.0,106470.0,1.94540651]
[1737495203272,0.321518,106480.0,106470.0,1.94540651]
[1737495203679,0.321518,106480.0,106470.0,1.8608]
[1737495204173,0.321518,106480.0,106470.0,1.8618]
[1737495204373,0.0684,106480.0,106470.0,2.1892568]
[1737495204577,0.00014129,106490.0,106480.0,0.187818]
[1737495204879,0.18794129,106490.0,106480.0,0.67562103]
[1737495205075,0.18794129,106490.0,106480.0,0.48780303]
[1737495205668,0.187818,106480.0,106470.0,1.87389877]
[1737495205880,0.187818,106480.0,106470.0,2.20596788]
[1737495206271,0.187818,106480.0,106470.0,1.84516788]
[1737495207282,0.187818,106480.0,106470.0,1.83354911]
[1737495207481,0.548618,106480.0,106470.0,1.83354911]
[1737495207687,0.548618,106480.0,106470.0,0.33354911]
[1737495207879,0.00014129,106490.0,106470.0,0.82135214]
[1737495208069,0.18794429,106490.0,106480.0,0.12700303]
[1737495208275,0.18794429,106490.0,106480.0,1.98780303]
[1737495209096,0.18794429,106490.0,106480.0,1.8608]
[1737495210203,0.18894429,106490.0,106480.0,1.8608]
[1737495212298,0.187835,106470.0,106460.0,0.37329576]
[1737495212605,0.187835,106470.0,106460.0,0.54300086]
[1737495212796,0.187835,106470.0,106460.0,2.04300086]
[1737495212995,0.316635,106470.0,106460.0,2.04300086]
[1737495213192,0.316635,106470.0,106460.0,1.91599783]
[1737495213498,0.316635,106470.0,106460.0,1.87329576]
[1737495213499,0.377135,106470.0,106460.0,1.87329576]
[1737495213699,0.377135,106470.0,106460.0,0.65256927]
[1737495213903,0.378135,106470.0,106460.0,0.65356927]
[1737495215392,0.50513803,106470.0,106460.0,0.29276927]
[1737495215903,0.378135,106470.0,106460.0,0.29276927]
[1737495216104,0.378135,106470.0,106460.0,0.2804148]
[1737495216297,0.187853,106460.0,106450.0,2.19334911]
[1737495216499,0.187853,106460.0,106450.0,2.24786855]
[1737495216802,0.187853,106460.0,106450.0,2.20515967]
[1737495217004,0.187853,106460.0,106450.0,2.40515967]
[1737495217304,0.187853,106460.0,106450.0,2.40815967]
[1737495217506,0.187853,106460.0,106450.0,2.29821716]
[1737495217705,0.188853,106460.0,106450.0,2.29921716]
[1737495218191,0.188853,106460.0,106450.0,2.42622019]
[1737495218708,0.188853,106460.0,106450.0,2.29921716]
[1737495219802,0.188853,106460.0,106450.0,1.93841716]
[1737495219803,0.31585603,106460.0,106450.0,1.93841716]
[1737495219997,0.188853,106460.0,106450.0,1.9266066]
[1737495220902,0.188853,106460.0,106450.0,0.4266066]
[1737495221608,0.188853,106460.0,106450.0,0.204]
[1737495223204,0.31585603,106460.0,106450.0,0.204]
[1737495223507,0.67665603,106460.0,106450.0,0.204]
[1737495223706,0.63438162,106460.0,106450.0,0.204]
[1737495224695,0.64598825,106460.0,106450.0,0.204]
[1737495226806,0.20045963,106460.0,106450.0,0.204]
[1737495227013,0.188853,106460.0,106450.0,0.28872862]
[1737495227203,0.188853,106460.0,106450.0,0.08872862]
[1737495227404,0.188853,106460.0,106450.0,0.004]
[1737495232316,0.188853,106460.0,106450.0,0.3648]
[1737495232518,0.188853,106460.0,106450.0,1.99187027]
[1737495233009,0.188853,106460.0,106450.0,1.8648]
[1737495235116,0.188853,106460.0,106450.0,1.99187027]
[1737495236220,0.188853,106460.0,106450.0,0.49187027]
[1737495238415,0.188853,106460.0,106450.0,0.3648]
[1737495239624,0.001,106460.0,106450.0,0.81256691]
[1737495240009,0.188852,106460.0,106450.0,0.62469691]
[1737495241413,0.188852,106460.0,106450.0,0.49762664]
[1737495242431,0.188852,106460.0,106450.0,0.72023324]
[1737495243842,0.188852,106460.0,106450.0,0.84730351]
[1737495244035,0.001,106460.0,106450.0,1.12910991]
[1737495244446,0.001,106460.0,106450.0,2.62910991]
[1737495246337,0.001,106460.0,106450.0,2.44123991]
[1737495246542,0.188852,106460.0,106450.0,2.44123991]
[1737495247835,0.188852,106460.0,106450.0,0.94123991]
[1737495248041,0.188852,106460.0,106450.0,0.84730351]
[1737495248340,0.188852,106460.0,106450.0,2.34730351]
[1737495248837,0.001,106460.0,106450.0,2.34730351]
[1737495249147,0.001,106460.0,106450.0,2.62910991]
[1737495249549,0.001,106460.0,106450.0,2.90317562]
[1737495249733,0.001,106460.0,106450.0,2.86075851]
[1737495249939,0.00014129,106470.0,106460.0,0.187852]
[1737495250134,0.00014129,106470.0,106460.0,0.6761318]
[1737495250539,0.18797529,106470.0,106460.0,0.4882798]
[1737495251545,0.18797529,106470.0,106460.0,0.4892798]
[1737495252549,0.18897529,106470.0,106460.0,0.4902798]
[1737495254648,0.00114129,106470.0,106460.0,0.88278496]
[1737495254952,0.00114129,106470.0,106460.0,1.60240599]
[1737495255341,0.11216439,106500.0,106460.0,1.67039362]
[1737495255544,0.11216439,106500.0,106490.0,0.99405216]
[1737495255744,0.11216439,106500.0,106490.0,2.49405216]
[1737495255946,0.29994639,106500.0,106490.0,2.49405216]
[1737495256240,0.29994639,106500.0,106490.0,2.30625316]
[1737495257455,0.29994639,106500.0,106490.0,2.31769988]
[1737495257759,0.30094639,106500.0,106490.0,2.31769988]
[1737495258050,0.30970904,106510.0,106500.0,0.187782]
[1737495258252,0.30830003,106510.0,106500.0,0.53010632]
[1737495258442,0.30830003,106510.0,106500.0,0.58990632]
[1737495258643,0.30830003,106510.0,106500.0,0.71150632]
[1737495258849,0.18790529,106510.0,106500.0,0.71150632]
[1737495259048,0.18790529,106510.0,106500.0,0.3608]
[1737495259656,0.18790529,106510.0,106500.0,0.3618]
[1737495260355,0.18790529,106510.0,106500.0,0.48874084]
[1737495262252,0.64759222,106530.0,106500.0,0.48874084]
[1737495262253,0.17425922,106530.0,106500.0,0.71658585]
[1737495262454,0.36199522,106530.0,106520.0,0.97548168]
[1737495262759,0.36199522,106530.0,106520.0,0.84854084]
[1737495262961,0.33377481,106530.0,106520.0,0.84854084]
[1737495264761,0.14703881,106530.0,106520.0,0.84854084]
[1737495264964,0.14803881,106530.0,106520.0,0.86033724]
[1737495265153,0.14803881,106530.0,106520.0,2.54808324]
[1737495265349,0.08403881,106530.0,106520.0,2.70502408]
[1737495265556,0.08403881,106530.0,106520.0,2.80406392]
[1737495266261,0.08403881,106530.0,106520.0,2.89793859]
[1737495266751,0.002,106530.0,106520.0,2.89793859]
[1737495268251,0.2499,106550.0,106530.0,0.18772]
[1737495268581,0.0622,106550.0,106540.0,1.03625184]
[1737495268862,0.0622,106550.0,106540.0,1.10045184]
[1737495269058,0.0601,106560.0,106540.0,1.11045184]
[1737495269364,0.310678,106560.0,106550.0,0.48774084]
[1737495269760,0.310678,106560.0,106550.0,0.3608]
[1737495269964,0.187694,106550.0,106540.0,0.3608]
[1737495270163,0.31463484,106550.0,106530.0,0.36094129]
[1737495270360,0.252611,106540.0,106530.0,0.00014129]
[1737495270561,0.252611,106540.0,106530.0,0.36094129]
[1737495271870,0.253611,106540.0,106530.0,0.36094129]
[1737495272068,0.254611,106540.0,106530.0,0.36094129]
[1737495272455,0.187729,106530.0,106520.0,0.38962377]
[1737495272664,0.251829,106530.0,106520.0,0.38962377]
[1737495274164,0.251829,106530.0,106520.0,0.51656461]
[1737495274365,0.251829,106530.0,106520.0,0.87736461]
[1737495275069,0.187747,106520.0,106510.0,2.00039177]
[1737495275260,0.187747,106520.0,106510.0,1.99991177]
[1737495275664,0.251447,106520.0,106510.0,1.99991177]
[1737495276868,0.251447,106520.0,106510.0,2.00391177]
[1737495277378,0.251447,106520.0,106510.0,2.00491177]
[1737495277578,0.0637,106520.0,106510.0,2.5135001]
[1737495277767,0.0641,106530.0,106510.0,0.8757361]
[1737495277970,0.0641,106530.0,106520.0,0.48774084]
[1737495278168,0.251829,106530.0,106520.0,1.98774084]
[1737495279263,0.251829,106530.0,106520.0,0.3608]
[1737495280977,0.251829,106530.0,106520.0,0.48774084]
[1737495284676,0.251829,106530.0,106520.0,0.3608]
[1737495285288,0.251829,106530.0,106520.0,0.48774084]
[1737495286085,0.251829,106530.0,106520.0,0.3608]
[1737495287782,0.00014129,106540.0,106520.0,0.55007794]
[1737495288089,0.18786129,106540.0,106530.0,1.9453665]
[1737495288985,0.18786129,106540.0,106530.0,0.4453665]
[1737495289390,0.18786129,106540.0,106530.0,1.9453665]
[1737495289590,0.18786129,106540.0,106530.0,2.0096665]
[1737495289889,0.18886129,106540.0,106530.0,2.05192209]
[1737495290280,0.18986129,106540.0,106530.0,2.05192209]
[1737495290685,0.18886129,106540.0,106530.0,2.05192209]
[1737495290882,0.18986129,106540.0,106530.0,2.05192209]
[1737495293291,0.18986129,106540.0,106530.0,2.06328821]
[1737495296298,0.09986129,106540.0,106530.0,2.06328821]
[1737495297094,0.09986129,106540.0,106530.0,1.70248821]
[1737495297293,0.09986129,106540.0,106530.0,1.80641902]
[1737495297700,0.09986129,106540.0,106530.0,1.70248821]
[1737495299611,0.09986129,106540.0,106530.0,2.06328821]
[1737495300509,0.09986129,106540.0,106530.0,2.22996326]
[1737495300908,0.09986129,106540.0,106530.0,2.25996326]
[1737495301402,0.09986129,106540.0,106530.0,2.13314117]
[1737495301607,0.09986129,106540.0,106530.0,0.56884117]
[1737495302111,0.58748338,106540.0,106530.0,0.19667505]
[1737495303010,0.58748338,106540.0,106530.0,0.16667505]
[1737495303211,0.48962209,106540.0,106520.0,0.22294872]
[1737495303518,0.187747,106520.0,106510.0,0.27924216]
[1737495303706,0.67536909,106520.0,106510.0,0.27924216]
[1737495303904,0.67536909,106520.0,106510.0,0.61179127]
[1737495306314,0.73686909,106520.0,106510.0,0.61179127]
[1737495306513,0.80226909,106520.0,106510.0,0.61179127]
[1737495306715,0.80226909,106520.0,106510.0,0.61579127]
[1737495306923,0.80226909,106520.0,106510.0,0.61679127]
[1737495308016,0.80226909,106520.0,106510.0,0.00522983]
[1737495308616,0.68673648,106520.0,106510.0,0.00522983]
[1737495309118,0.81355857,106520.0,106510.0,0.00522983]
[1737495310318,0.68673648,106520.0,106510.0,0.00522983]
[1737495310720,0.81355857,106520.0,106510.0,0.00522983]
[1737495311713,0.7713666,106520.0,106510.0,0.00522983]
[1737495315526,0.187747,106520.0,106510.0,0.36602983]
[1737495315727,0.187747,106520.0,106510.0,0.00522983]
[1737495316021,0.187747,106520.0,106510.0,0.36602983]
[1737495316919,0.63317712,106520.0,106510.0,0.00522983]
[1737495322426,0.64422238,106520.0,106510.0,0.00522983]
[1737495325429,0.1878,106490.0,106480.0,0.17717]
[1737495325627,0.27243012,106490.0,106480.0,0.17717]
[1737495325825,0.27243012,106490.0,106480.0,0.04176078]
[1737495326025,0.187818,106480.0,106470.0,2.24638182]
[1737495326232,0.187818,106480.0,106470.0,2.20462104]
[1737495326429,0.18790364,106480.0,106470.0,2.30050053]
[1737495326734,0.18790364,106480.0,106470.0,2.35403731]
[1737495327328,0.18790364,106480.0,106470.0,2.26940719]
[1737495328023,0.18790364,106480.0,106470.0,2.27340719]
[1737495328224,0.18790364,106480.0,106470.0,2.27440719]
[1737495328534,0.27253376,106480.0,106470.0,2.27440719]
[1737495330836,0.27253376,106480.0,106470.0,1.94185808]
[1737495334341,0.18790364,106480.0,106470.0,1.94185808]
[1737495334538,0.27253376,106480.0,106470.0,1.94185808]
[1737495335634,0.18790364,106480.0,106470.0,1.94185808]
[1737495335830,0.18790364,106480.0,106470.0,1.95185808]
[1737495336342,0.18790364,106480.0,106470.0,2.0364882]
[1737495338433,0.18790364,106480.0,106470.0,1.95185808]
[1737495338939,0.18790364,106480.0,106470.0,2.0364882]
[1737495339745,0.18790364,106480.0,106470.0,1.95185808]
[1737495340240,0.27253376,106480.0,106470.0,1.88845808]
[1737495340441,0.187835,106470.0,106460.0,0.00014129]
[1737495340633,0.63333777,106470.0,106460.0,0.00014129]
[1737495341546,0.63433777,106470.0,106460.0,0.00614129]
[1737495344843,0.54970765,106470.0,106460.0,0.00614129]
[1737495346038,0.54970765,106470.0,106460.0,0.09077141]
[1737495346445,0.54970765,106470.0,106460.0,0.00614129]
[1737495349344,0.71889524,106470.0,106460.0,2.9e-07]
[1737495349543,0.187888,106440.0,106430.0,0.70260898]
[1737495349844,0.27261622,106440.0,106430.0,0.70260898]
[1737495350240,0.27261622,106440.0,106430.0,0.27900898]
[1737495350441,0.71794824,106440.0,106430.0,0.27900898]
[1737495350641,0.71894824,106440.0,106430.0,0.27900898]
[1737495350841,0.63531812,106440.0,106430.0,0.28500898]
[1737495351239,0.63431812,106440.0,106430.0,0.28500898]
[1737495351438,0.63331812,106440.0,106430.0,0.27900898]
[1737495351638,0.71794824,106440.0,106430.0,0.28000898]
[1737495353039,0.71794824,106440.0,106430.0,0.001]
[1737495353343,0.71804247,106440.0,106430.0,0.001]
[1737495353541,0.71794824,106440.0,106430.0,0.001]
[1737495354744,0.71794824,106440.0,106430.0,1e-06]
[1737495355347,0.187905,106430.0,106420.0,0.00021737]
[1737495355542,0.63333512,106430.0,106420.0,0.00014129]
[1737495357051,0.63433512,106430.0,106420.0,0.00014129]
[1737495357251,0.63442538,106430.0,106420.0,0.00014129]
[1737495357448,0.63633512,106430.0,106420.0,0.00014129]
[1737495363866,0.63643322,106430.0,106420.0,0.00014129]
[1737495364566,0.1910031,106430.0,106420.0,0.00014129]
[1737495364771,0.63643322,106430.0,106420.0,0.06814129]
[1737495364960,0.63643322,106430.0,106420.0,0.00014129]
[1737495368468,0.1910031,106430.0,106420.0,0.44557141]
[1737495368870,0.1910031,106430.0,106420.0,0.36094129]
[1737495369169,0.1910031,106430.0,106420.0,0.44557141]
[1737495369668,0.1910031,106430.0,106420.0,0.36094129]
[1737495369863,0.1910031,106430.0,106420.0,1.86094129]
[1737495370269,0.1910031,106430.0,106420.0,1.94557141]
[1737495371457,0.1900031,106430.0,106420.0,1.94557141]
[1737495372165,0.1890031,106430.0,106420.0,1.956582]
[1737495372366,0.1900031,106430.0,106420.0,1.956582]
[1737495378481,0.1900031,106430.0,106420.0,2.016582]
[1737495380975,0.1900031,106430.0,106420.0,1.93195188]
[1737495381775,0.1900031,106430.0,106420.0,2.016582]
[1737495383477,0.1900031,106430.0,106420.0,0.00014129]
[1737495383478,0.63543322,106430.0,106420.0,0.00014129]
[1737495383670,0.82373322,106430.0,106420.0,0.00014129]
[1737495384370,0.82363512,106430.0,106420.0,0.00014129]
[1737495386976,0.82370264,106430.0,106420.0,0.00014129]
[1737495387172,0.82373322,106430.0,106420.0,0.00014129]
[1737495387375,0.90796291,106430.0,106420.0,0.00014129]
[1737495387581,0.90795291,106430.0,106420.0,0.00014129]
[1737495387782,0.90797505,106430.0,106420.0,0.00014129]
[1737495388079,0.91888726,106430.0,106420.0,0.00014129]
[1737495388881,1.00351738,106430.0,106420.0,2.9e-07]
[1737495389471,0.91888726,106430.0,106420.0,2.9e-07]
[1737495391382,0.97479237,106430.0,106420.0,2.9e-07]
[1737495392683,0.974883,106430.0,106420.0,2.9e-07]
[1737495392879,0.97479237,106430.0,106420.0,2.9e-07]
[1737495395984,0.97489047,106430.0,106420.0,2.9e-07]
[1737495396178,0.70186225,106430.0,106420.0,2.9e-07]
[1737495396375,0.78649237,106430.0,106420.0,2.9e-07]
[1737495396589,0.78657645,106430.0,106420.0,2.9e-07]
[1737495399082,0.78649237,106430.0,106420.0,2.9e-07]
[1737495400082,0.73054475,106430.0,106420.0,2.9e-07]
[1737495403383,0.84281052,106430.0,106420.0,2.9e-07]
[1737495405884,0.90851052,106430.0,106420.0,2.9e-07]
[1737495407489,1.02020417,106430.0,106420.0,2.9e-07]
[1737495414594,1.0202814,106430.0,106420.0,2.9e-07]
[1737495414801,1.0202732,106430.0,106420.0,2.9e-07]
[1737495415000,1.02028814,106430.0,106420.0,2.9e-07]
[1737495415191,1.02020417,106430.0,106420.0,2.9e-07]
[1737495416399,0.187941,106410.0,106400.0,0.1654]
[1737495416601,0.63337112,106410.0,106400.0,0.1654]
[1737495416791,0.63346537,106410.0,106400.0,0.1654]
[1737495417498,0.63446537,106410.0,106400.0,0.1654]
[1737495417702,0.63446537,106410.0,106400.0,0.1674]
[1737495418199,0.63446537,106410.0,106400.0,1e-06]
[1737495419701,0.63437112,106410.0,106400.0,1e-06]
[1737495422297,0.74694627,106410.0,106400.0,1e-06]
[1737495423502,0.75756303,106410.0,106400.0,1e-06]
[1737495425100,0.65425215,106410.0,106390.0,2.9e-07]
[1737495425303,0.82778812,106400.0,106390.0,2.9e-07]
[1737495425509,0.27260612,106390.0,106380.0,0.10207981]
[1737495425705,0.63350422,106390.0,106380.0,0.10207981]
[1737495426112,0.63350422,106390.0,106380.0,0.06021103]
[1737495427702,0.71803624,106390.0,106380.0,3e-08]
[1737495428310,0.63340612,106390.0,106380.0,3e-08]
[1737495429507,0.64383396,106390.0,106380.0,3e-08]
[1737495430611,0.64383396,106390.0,106370.0,0.57550534]
[1737495430813,0.63352122,106380.0,106370.0,0.29649636]
[1737495432706,0.63452122,106380.0,106370.0,0.29649636]
[1737495433107,0.63452122,106380.0,106370.0,0.29749636]
[1737495434016,0.5498911,106380.0,106370.0,0.29749636]
[1737495434220,0.15956915,106390.0,106370.0,1.04292648]
[1737495434530,0.34754515,106390.0,106380.0,0.0614]
[1737495434823,0.34754515,106390.0,106380.0,1.5614]
[1737495435430,0.79297527,106390.0,106380.0,1.5614]
[1737495435619,0.82111906,106390.0,106380.0,1.5614]
[1737495436426,0.82111906,106390.0,106380.0,0.0614]
[1737495439226,0.76472475,106390.0,106380.0,0.0614]
[1737495441735,0.31929463,106390.0,106380.0,0.0614]
[1737495441931,0.31929463,106390.0,106380.0,0.50683012]
[1737495442134,0.27230063,106390.0,106380.0,0.50683012]
[1737495442529,0.11257413,106400.0,106380.0,2.44264769]
[1737495442733,0.24644468,106400.0,106390.0,0.44543012]
[1737495443034,0.24644468,106400.0,106390.0,0.48723772]
[1737495443737,0.49681803,106410.0,106400.0,0.187958]
[1737495443936,0.49681803,106410.0,106400.0,0.63338812]
[1737495444236,0.30887203,106410.0,106400.0,0.96338812]
[1737495444446,0.00014129,106410.0,106400.0,1.05737749]
[1737495445335,0.18808129,106410.0,106400.0,1.05737749]
[1737495445836,0.18808129,106410.0,106400.0,0.4024795]
[1737495446042,0.18808129,106410.0,106400.0,0.48710962]
[1737495447944,0.18808129,106410.0,106400.0,1.98710962]
[1737495448335,0.18808129,106410.0,106400.0,2.17506762]
[1737495448541,0.18808129,106410.0,106400.0,2.56904816]
[1737495448842,0.18808129,106410.0,106400.0,2.60904816]
[1737495450337,0.18808129,106410.0,106400.0,2.30904816]
[1737495451340,0.18808129,106410.0,106400.0,2.26736866]
[1737495452937,0.18808129,106410.0,106400.0,0.76736866]
[1737495453442,0.18808129,106410.0,106400.0,2.26736866]
[1737495453644,0.18808129,106410.0,106400.0,1.98543012]
[1737495454647,0.18808129,106410.0,106400.0,1.9008]
[1737495454840,0.38478129,106410.0,106400.0,1.9008]
[1737495455733,0.38478129,106410.0,106400.0,2.06807134]
[1737495457254,0.38478129,106410.0,106400.0,1.70727134]
[1737495458944,0.38478129,106410.0,106400.0,1.79190146]
[1737495459152,0.38478129,106410.0,106400.0,2.15270146]
[1737495460349,0.38478129,106410.0,106400.0,1.98543012]
[1737495462154,0.19684129,106410.0,106400.0,2.17338812]
[1737495462451,0.38478129,106410.0,106400.0,2.17338812]
[1737495468156,0.38478129,106410.0,106400.0,2.34065946]
[1737495473860,0.38478129,106410.0,106400.0,0.84065946]
[1737495474055,0.38478129,106410.0,106400.0,0.88139786]
[1737495474255,0.38478129,106410.0,106400.0,2.38139786]
[1737495474667,0.38478129,106410.0,106400.0,2.71218338]
[1737495476652,0.00014129,106410.0,106400.0,3.29180203]
[1737495476857,0.1253,106430.0,106420.0,0.187923]
[1737495477055,0.1253,106430.0,106420.0,1.11415312]
[1737495477359,0.313205,106430.0,106420.0,0.50232872]
[1737495477564,0.313205,106430.0,106420.0,0.14152872]
[1737495477863,0.187923,106420.0,106410.0,0.63337012]
[1737495478164,0.187923,106420.0,106410.0,0.66351141]
[1737495478362,0.187923,106420.0,106410.0,0.39094129]
[1737495478962,0.187923,106420.0,106410.0,0.47557141]
[1737495479356,0.188923,106420.0,106410.0,0.47557141]
[1737495479967,0.189923,106420.0,106410.0,0.47557141]
[1737495481765,0.002,106420.0,106410.0,0.84211324]
[1737495482164,0.002,106420.0,106410.0,0.75748312]
[1737495482366,0.002,106420.0,106410.0,2.25748312]
[1737495483472,0.002,106420.0,106410.0,2.75553998]
[1737495484466,0.002,106420.0,106410.0,2.8401701]
[1737495484665,0.002,106420.0,106410.0,2.49345957]
[1737495484865,0.187923,106420.0,106410.0,0.89948786]
[1737495485273,0.187923,106420.0,106410.0,2.48411798]
[1737495491184,0.187923,106420.0,106410.0,2.70843749]
[1737495491486,0.187923,106420.0,106410.0,1.20843749]
[1737495491874,0.187923,106420.0,106410.0,2.70843749]
[1737495492076,0.1253,106430.0,106410.0,3.29337904]
[1737495492273,0.1253,106430.0,106420.0,0.63335312]
[1737495492473,0.1253,106430.0,106420.0,0.67335312]
[1737495492780,0.313205,106430.0,106420.0,0.48543012]
[1737495493168,0.1253,106430.0,106420.0,0.579393]
[1737495493378,0.1263,106430.0,106420.0,0.767316]
[1737495493778,0.314205,106430.0,106420.0,0.767316]
[1737495494481,0.316205,106430.0,106420.0,0.767316]
[1737495495886,0.316205,106430.0,106420.0,1.26537286]
[1737495496780,0.316205,106430.0,106420.0,1.07744986]
[1737495497486,0.316205,106430.0,106420.0,2.57744986]
[1737495498680,0.003,106430.0,106420.0,2.76537286]
[1737495498983,0.13114129,106440.0,106430.0,0.187905]
[1737495499283,0.31902829,106440.0,106430.0,0.63333512]
[1737495500185,0.32002829,106440.0,106430.0,0.63333512]
[1737495501085,0.32202829,106440.0,106430.0,0.63333512]
[1737495502183,0.32202829,106440.0,106430.0,0.65333512]
[1737495502890,0.32202829,106440.0,106430.0,2.15333512]
[1737495503586,0.32202829,106440.0,106430.0,2.36346936]
[1737495503784,0.32202829,106440.0,106430.0,2.86669394]
[1737495504687,0.32202829,106440.0,106430.0,2.67878894]
[1737495504987,0.32202829,106440.0,106430.0,2.6892555]
[1737495506985,0.32202829,106440.0,106430.0,2.60462538]
[1737495507183,0.32202829,106440.0,106430.0,0.72382538]
[1737495507378,0.32202829,106440.0,106430.0,1.08462538]
[1737495507783,0.32202829,106440.0,106430.0,1.1692555]
[1737495508187,0.32202829,106440.0,106430.0,1.08462538]
[1737495511987,0.32202829,106440.0,106430.0,0.53903155]
[1737495512490,0.32202829,106440.0,106430.0,0.62366167]
[1737495512993,0.32202829,106440.0,106430.0,0.53903155]
[1737495513291,0.32202829,106440.0,106430.0,2.03903155]
[1737495513792,0.32202829,106440.0,106430.0,2.12366167]
[1737495515492,0.32202829,106440.0,106430.0,2.03903155]
[1737495515885,0.32202829,106440.0,106430.0,2.12366167]
[1737495517696,0.32202829,106440.0,106430.0,2.03903155]
[1737495518487,0.32202829,106440.0,106430.0,2.21366167]
[1737495518691,0.32202829,106440.0,106430.0,1.18851992]
[1737495518692,0.00314129,106440.0,106430.0,1.18851992]
[1737495519092,0.00314129,106440.0,106430.0,2.68851992]
[1737495519488,0.00314129,106440.0,106430.0,2.6038898]
[1737495520089,0.19102929,106440.0,106430.0,2.6038898]
[1737495520289,0.19102929,106440.0,106430.0,2.21366167]
[1737495520489,0.31772929,106440.0,106430.0,2.21366167]
[1737495520691,0.31772929,106440.0,106430.0,2.40156667]
[1737495521794,0.31572929,106440.0,106430.0,2.40156667]
[1737495522197,0.31472929,106440.0,106430.0,2.72411945]
[1737495522500,0.31472929,106440.0,106430.0,2.53621445]
[1737495527601,0.76015941,106440.0,106430.0,0.59078433]
[1737495528006,0.67552929,106440.0,106430.0,0.59078433]
[1737495528306,0.76015941,106440.0,106430.0,0.50078433]
[1737495528508,0.76015941,106440.0,106430.0,0.49031777]
[1737495528898,0.76015941,106440.0,106430.0,0.71447226]
[1737495532207,1.12095941,106440.0,106430.0,0.71447226]
[1737495534402,1.12095941,106440.0,106430.0,0.001]
[1737495534403,1.23332694,106440.0,106430.0,0.001]
[1737495534803,1.24371603,106440.0,106430.0,0.001]
[1737495537212,1.15908591,106440.0,106430.0,0.08563012]
[1737495537411,1.14869682,106440.0,106430.0,0.08563012]
[1737495537613,1.14869682,106440.0,106430.0,0.001]
[1737495538009,1.14869682,106440.0,106430.0,1.501]
[1737495538411,1.28911306,106440.0,106430.0,1.501]
[1737495538914,1.37374318,106440.0,106430.0,1.501]
[1737495539907,1.28911306,106440.0,106430.0,1.501]
[1737495540211,1.28911306,106440.0,106430.0,0.001]
[1737495540619,1.37374318,106440.0,106430.0,0.001]
[1737495541622,0.187923,106420.0,106410.0,0.17860363]
[1737495541819,0.27255312,106420.0,106410.0,0.16823385]
[1737495542020,0.252423,106420.0,106410.0,0.16823385]
[1737495542321,0.252423,106420.0,106410.0,0.22429578]
[1737495542919,0.253423,106420.0,106410.0,0.3119259]
[1737495543817,0.253423,106420.0,106410.0,0.22729578]
[1737495544621,0.253423,106420.0,106410.0,0.3119259]
[1737495544822,0.316023,106420.0,106410.0,0.32206141]
[1737495545427,0.316023,106420.0,106410.0,0.26578682]
[1737495547024,0.316023,106420.0,106410.0,0.1811567]
[1737495547226,0.316023,106420.0,106410.0,1.6811567]
[1737495549327,0.188923,106420.0,106410.0,2.30518865]
[1737495549516,0.188923,106420.0,106410.0,2.57312865]
[1737495549718,0.188923,106420.0,106410.0,2.48849853]
[1737495549913,0.188923,106420.0,106410.0,2.30055853]
[1737495550118,0.188923,106420.0,106410.0,2.20658682]
[1737495550432,0.188923,106420.0,106410.0,2.39452682]
[1737495553122,0.188923,106420.0,106410.0,2.20658682]
[1737495553322,0.253223,106420.0,106410.0,2.20658682]
[1737495553528,0.313723,106420.0,106410.0,2.20658682]
[1737495553921,0.313723,106420.0,106410.0,2.26286141]
[1737495556232,0.1258,106420.0,106410.0,2.45080141]
[1737495556629,0.313723,106420.0,106410.0,2.26286141]
[1737495557637,0.1258,106420.0,106410.0,2.26286141]
[1737495557928,0.1258,106420.0,106410.0,2.45080141]
[1737495558332,0.1258,106420.0,106410.0,2.26286141]
[1737495558333,0.313722,106420.0,106410.0,2.26286141]
[1737495559129,0.313722,106420.0,106410.0,2.45080141]
[1737495559929,0.313722,106420.0,106410.0,2.26286141]
[1737495561142,0.313722,106420.0,106410.0,2.45080141]
[1737495561641,0.313722,106420.0,106410.0,2.72016906]
[1737495566146,0.313722,106420.0,106410.0,2.69115623]
[1737495567547,0.1258,106420.0,106410.0,2.69115623]
[1737495568042,0.001,106420.0,106410.0,1.34074523]
[1737495568234,0.001,106420.0,106410.0,1.44900407]
[1737495568745,0.001,106420.0,106410.0,2.94900407]
[1737495569241,0.001,106420.0,106410.0,2.83776949]
[1737495569445,0.37234029,106420.0,106410.0,0.94759894]
[1737495569641,0.316723,106420.0,106410.0,1.00321623]
[1737495569842,0.316723,106420.0,106410.0,1.3384141]
[1737495573645,0.316723,106420.0,106410.0,1.22750565]
[1737495575542,0.316723,106420.0,106410.0,2.72750565]
[1737495576857,0.316723,106420.0,106410.0,2.23398351]
[1737495580560,0.316723,106420.0,106410.0,1.01331507]
[1737495580949,0.316723,106420.0,106410.0,2.51331507]
[1737495584760,0.316723,106420.0,106410.0,2.49924962]
[1737495586261,0.1438489,106430.0,106410.0,2.74721524]
[1737495586262,0.13249426,106430.0,106410.0,2.74721524]
[1737495586456,0.13249426,106430.0,106420.0,0.65995758]
[1737495586661,0.0844489,106430.0,106420.0,0.82995758]
[1737495587067,0.2723539,106430.0,106420.0,2.23600629]
[1737495587361,0.2723539,106430.0,106420.0,2.08641729]
[1737495587565,0.2723539,106430.0,106420.0,0.58641729]
[1737495588159,0.2723539,106430.0,106420.0,2.08841729]
[1737495588961,0.2733539,106430.0,106420.0,2.08941729]
[1737495589564,0.3349539,106430.0,106420.0,2.08941729]
[1737495590970,0.3349539,106430.0,106420.0,2.31380353]
[1737495592065,0.39057119,106430.0,106420.0,2.25818624]